fUST/lending_fUST_20251030
["ID","MTS","AMOUNT","RATE_DAILY","PERIOD"]
[392687452,1761810682087,-500.0,0.00032602,4]
[392687453,1761810682097,-507.62,0.00032602,4]
[392687454,1761810682107,-500.0,0.00032602,4]
[392687455,1761810682116,-590.42,0.00032602,4]
[392687456,1761810682126,-500.0,0.00032602,4]
[392687457,1761810682135,-500.0,0.00032602,4]
[392687458,1761810682144,-500.0,0.00032602,4]
[392687459,1761810682154,-1166.11,0.00032602,4]
[392687460,1761810682163,-592.45,0.00032602,4]
[392687461,1761810682173,-313.6,0.00032602,4]
[392687462,1761810682183,-1276.78,0.00032602,4]
[392687463,1761810682192,-500.0,0.00032602,4]
[392687464,1761810682202,-536.13,0.00032602,4]
[392687465,1761810682212,-660.73,0.00032602,4]
[392687466,1761810682221,-552.55,0.00032602,4]
[392687467,1761810682230,-500.0,0.00032602,4]
[392687468,1761810682240,-500.0,0.00032602,4]
[392687469,1761810682249,-500.0,0.00032602,4]
[392687470,1761810682259,-523.13,0.00032602,4]
[392687471,1761810682268,-589.59,0.00032602,4]
[392687472,1761810682277,-401.16,0.00032602,4]
[392687473,1761810682286,-500.0,0.00032602,4]
[392687474,1761810682295,-500.0,0.00032602,4]
[392687475,1761810682304,-274.27575696,0.00032602,4]
[392687476,1761810682314,-524.96,0.00032602,4]
[392687477,1761810682324,-1507.7,0.00032602,3]
[392687478,1761810682334,-581.5,0.00032602,4]
[392687479,1761810682343,-314.71,0.00032602,4]
[392687480,1761810682352,-500.0,0.00032602,4]
[392687481,1761810682362,-3653.56,0.00032602,4]
[392687482,1761810682372,-500.0,0.00032602,4]
[392687483,1761810682381,-533.07,0.00032602,4]
[392687484,1761810682390,-568.64,0.00032602,4]
[392687485,1761810682400,-175.6,0.00032663,15]
[392687486,1761810682409,-1284.59,0.000327,7]
[392687487,1761810682419,-175.6,0.00032763,15]
[392687488,1761810682428,-750.8,0.00032791,4]
[392687489,1761810682438,-490.8,0.00032791,4]
[392687490,1761810682447,-1079.18,0.00032791,4]
[392687491,1761810682456,-12500.0,0.00032812,10]
[392687492,1761810682466,-12500.0,0.00032821,10]
[392687493,1761810682476,-823.0,0.00032836,2]
[392687494,1761810682486,-175.6,0.00032863,15]
[392687495,1761810682496,-500.0,0.00032876,4]
[392687496,1761810682505,-539.18,0.00032876,4]
[392687497,1761810682515,-1257.51,0.00032876,4]
[392687498,1761810682524,-645.1,0.00032876,4]
[392687499,1761810682533,-507.62,0.00032876,4]
[392687500,1761810682543,-500.0,0.00032876,4]
[392687501,1761810682553,-590.42,0.00032876,4]
[392687502,1761810682562,-325.61740742,0.00032876,4]
[392687503,1761810682572,-556.85,0.00032876,4]
[392687504,1761810682581,-300.04185911,0.00032876,4]
[392687505,1761810682589,-1166.11,0.00032876,4]
[392687506,1761810682599,-592.45,0.00032876,4]
[392687507,1761810682608,-1276.78,0.00032876,4]
[392687508,1761810682617,-526.6,0.00032876,4]
[392687509,1761810682626,-536.13,0.00032876,4]
[392687510,1761810682635,-660.73,0.00032876,4]
[392687511,1761810682644,-552.55,0.00032876,4]
[392687512,1761810682654,-500.0,0.00032876,4]
[392687513,1761810682664,-500.0,0.00032876,4]
[392687514,1761810682673,-583.82,0.00032876,4]
[392687515,1761810682684,-523.13,0.00032876,4]
[392687516,1761810682696,-589.59,0.00032876,4]
[392687517,1761810682706,-485.84,0.00032876,4]
[392687518,1761810682716,-500.0,0.00032876,4]
[392687519,1761810682725,-524.96,0.00032876,4]
[392687520,1761810682734,-1507.7,0.00032876,3]
[392687521,1761810682743,-581.5,0.00032876,4]
[392687522,1761810682752,-500.0,0.00032876,4]
[392687523,1761810682762,-3653.56,0.00032876,4]
[392687524,1761810682771,-550.82,0.00032876,4]
[392687525,1761810682781,-533.07,0.00032876,4]
[392687526,1761810682791,-568.64,0.00032876,4]
[392687527,1761810682800,-9391.3056749,0.00032894,2]
[392687528,1761810682809,-320.0,0.00032925,2]
[392687529,1761810682819,-175.6,0.00032963,60]
[392687530,1761810682828,-320.0,0.00032985,2]
[392687531,1761810682837,-168.0,0.00032991,2]
[392687532,1761810682846,-321.0,0.0003301,2]
[392687533,1761810682855,-175.6,0.00033063,60]
[392687534,1761810682864,-750.8,0.00033065,4]
[392687535,1761810682874,-1079.18,0.00033065,4]
[392687536,1761810682883,-500.0,0.0003315,4]
[392687537,1761810682892,-539.18,0.0003315,4]
[392687538,1761810682901,-1257.51,0.0003315,4]
[392687539,1761810682911,-507.62,0.0003315,4]
[392687540,1761810682921,-500.0,0.0003315,4]
[392687541,1761810682931,-590.42,0.0003315,4]
[392687542,1761810682942,-1166.11,0.0003315,4]
[392687543,1761810682952,-592.45,0.0003315,4]
[392687544,1761810682963,-1276.78,0.0003315,4]
[392687545,1761810682973,-536.13,0.0003315,4]
[392687546,1761810682984,-660.73,0.0003315,4]
[392687547,1761810682995,-552.55,0.0003315,4]
[392687548,1761810683004,-500.0,0.0003315,4]
[392687549,1761810683013,-500.0,0.0003315,4]
[392687550,1761810683023,-523.13,0.0003315,4]
[392687551,1761810683033,-589.59,0.0003315,4]
[392687552,1761810683044,-451.92,0.0003315,4]
[392687553,1761810683053,-524.96,0.0003315,4]
[392687554,1761810683062,-1507.7,0.0003315,3]
[392687555,1761810683073,-581.5,0.0003315,4]
[392687556,1761810683082,-500.0,0.0003315,4]
[392687557,1761810683092,-3653.56,0.0003315,4]
[392687558,1761810683101,-533.07,0.0003315,4]
[392687559,1761810683110,-568.64,0.0003315,4]
[392687560,1761810683120,-175.6,0.00033163,60]
[392687561,1761810683129,-524.93217371,0.00033217,120]
[392687562,1761810683139,-175.6,0.00033263,60]
[392687563,1761810683148,-320.0,0.00033268,2]
[392687564,1761810683158,-750.8,0.00033339,4]
[392687565,1761810683168,-1079.18,0.00033339,4]
[392687566,1761810683177,-175.6,0.00033363,60]
[392687567,1761810683187,-320.0,0.00033368,7]
[392687568,1761810683197,-2177.8,0.00033379,2]
[392687569,1761810683206,-991.369,0.00033379,2]
[392687570,1761810683215,-642.223,0.00033379,2]
[392687571,1761810683226,-412.0,0.00033379,2]
[392687572,1761810683235,-250.0,0.00033379,2]
[392687573,1761810683245,-250.0,0.00033379,2]
[392687574,1761810683254,-214.776,0.00033379,2]
[392687575,1761810683264,-476.65,0.00033424,4]
[392687576,1761810683273,-539.18,0.00033424,4]
[392687577,1761810683283,-1257.51,0.00033424,4]
[392687578,1761810683292,-507.62,0.00033424,4]
[392687579,1761810683302,-482.59076125,0.00033424,4]
[392687580,1761810683311,-590.42,0.00033424,4]
[392687581,1761810683320,-1166.11,0.00033424,4]
[392687582,1761810683330,-592.45,0.00033424,4]
[392687583,1761810683340,-1276.78,0.00033424,4]
[392687584,1761810683349,-536.13,0.00033424,4]
[392687585,1761810683358,-660.73,0.00033424,4]
[392687586,1761810683367,-552.55,0.00033424,4]
[392687587,1761810683376,-497.08,0.00033424,4]
[392687588,1761810683386,-500.0,0.00033424,4]
[392687589,1761810683396,-523.13,0.00033424,4]
[392687590,1761810683405,-589.59,0.00033424,4]
[392687591,1761810683414,-524.96,0.00033424,4]
[392687592,1761810683424,-1507.7,0.00033424,3]
[392687593,1761810683433,-581.5,0.00033424,4]
[392687594,1761810683442,-569.52,0.00033424,4]
[392687595,1761810683451,-3653.56,0.00033424,4]
[392687596,1761810683461,-533.07,0.00033424,4]
[392687597,1761810683469,-568.64,0.00033424,4]
[392687598,1761810683479,-175.6,0.00033463,60]
[392687599,1761810683488,-321.0,0.00033553,7]
[392687600,1761810683497,-175.6,0.00033563,60]
[392687601,1761810683506,-329.0,0.00033581,2]
[392687602,1761810683515,-153.0,0.00033582,2]
[392687603,1761810683525,-153.0,0.00033585,2]
[392687604,1761810683535,-153.0,0.00033585,2]
[392687605,1761810683544,-168.0,0.00033591,2]
[392687606,1761810683552,-200.0,0.00033599,120]
[392687607,1761810683561,-618.24,0.000336,14]
[392687608,1761810683570,-750.8,0.00033613,4]
[392687609,1761810683579,-1079.18,0.00033613,4]
[392687610,1761810683588,-168.0,0.00033615,2]
[392687611,1761810683718,-168.0,0.00033641,2]
[392687612,1761810683728,-175.6,0.00033663,60]
[392687613,1761810683739,-320.0,0.00033684,7]
[392687614,1761810683748,-539.31657925,0.00033698,4]
[392687615,1761810683758,-1257.59885493,0.00033698,4]
[392687616,1761810683768,-507.79,0.00033698,4]
[392687617,1761810683777,-590.49,0.00033698,4]
[392687618,1761810683787,-1166.30293745,0.00033698,4]
[392687619,1761810683797,-592.45,0.00033698,4]
[392687620,1761810683806,-1276.91,0.00033698,4]
[392687621,1761810683816,-536.29,0.00033698,4]
[392687622,1761810683825,-660.73,0.00033698,4]
[392687623,1761810683835,-552.73,0.00033698,4]
[392687624,1761810683845,-150.11,0.00033698,4]
[392687625,1761810683855,-523.21,0.00033698,4]
[392687626,1761810683864,-589.79,0.00033698,4]
[392687627,1761810683874,-525.14,0.00033698,4]
[392687628,1761810683884,-1507.73,0.00033698,3]
[392687629,1761810683893,-581.71,0.00033698,4]
[392687630,1761810683903,-3653.59,0.00033698,4]
[392687631,1761810683912,-533.27,0.00033698,4]
[392687632,1761810683921,-568.72,0.00033698,4]
[392687633,1761810683930,-175.6,0.00033763,60]
[392687634,1761810683940,-320.0,0.0003378,2]
[392687635,1761810683949,-175.6,0.00033863,60]
[392687636,1761810683959,-750.96,0.00033887,4]
[392687637,1761810683969,-1079.18,0.00033887,4]
[392687638,1761810683978,-175.6,0.00033963,60]
[392687639,1761810683988,-151.0,0.00033982,7]
[392687640,1761810684003,-864.0,0.00034044,30]
[392687641,1761810684012,-175.6,0.00034063,60]
[392687642,1761810684021,-175.6,0.00034163,60]
[392687643,1761810684030,-168.0,0.00034194,2]
[392687644,1761810684041,-320.0,0.00034243,2]
[392687645,1761810684051,-1000.0,0.00034246,15]
[392687646,1761810684061,-1000.0,0.00034246,15]
[392687647,1761810684072,-1000.0,0.00034246,15]
[392687648,1761810684081,-1000.0,0.00034246,15]
[392687649,1761810684091,-1000.0,0.00034246,15]
[392687650,1761810684100,-1000.0,0.00034246,15]
[392687651,1761810684110,-1000.0,0.00034246,15]
[392687652,1761810684120,-754.80201505,0.00034246,15]
[392687653,1761810684129,-175.6,0.00034263,60]
[392687654,1761810684139,-150.0,0.00034332,2]
[392687655,1761810684149,-200.0,0.00034332,30]
[392687656,1761810684159,-175.6,0.00034363,60]
[392687657,1761810684169,-175.6,0.00034463,60]
[392687658,1761810684179,-848.0616803,0.00034545,2]
[392687659,1761810684188,-150.7099686,0.00034545,2]
[392687660,1761810684197,-623.7058151,0.00034545,2]
[392687661,1761810684207,-3573.0036347,0.00034545,2]
[392687662,1761810684217,-175.6,0.00034563,60]
[392687663,1761810684227,-175.6,0.00034663,60]
[392687664,1761810684236,-151.0,0.00034666,30]
[392687665,1761810684246,-172.70003405,0.00034685,30]
[392687666,1761810684256,-169.71830676,0.00034685,30]
[392687667,1761810684265,-169.71830676,0.00034685,30]
[392687668,1761810684274,-175.6,0.00034763,60]
[392687669,1761810684284,-320.0,0.00034799,7]
[392687670,1761810684294,-168.0,0.00034804,2]
[392687671,1761810684304,-320.0,0.00034836,2]
[392687672,1761810684314,-175.6,0.00034863,60]
[392687673,1761810684324,-9391.3056749,0.00034959,2]
[392687674,1761810684333,-175.6,0.00034963,60]
[392687675,1761810684342,-175.6,0.00035063,60]
[392687676,1761810684351,-175.6,0.00035163,60]
[392687677,1761810684360,-579.86693608,0.00035217,120]
[392687678,1761810684370,-175.6,0.00035263,60]
[392687679,1761810684380,-174.65348845,0.00035343,2]
[392687680,1761810684389,-151.0,0.00035349,30]
[392687681,1761810684398,-175.6,0.00035363,60]
[392687682,1761810684407,-618.24,0.000354,14]
[392687683,1761810684417,-200.0,0.00035437,120]
[392687684,1761810684426,-500.95869344,0.00035444,13]
[392687685,1761810684435,-501.27101039,0.00035444,13]
[392687686,1761810684444,-175.6,0.00035463,60]
[392687687,1761810684453,-168.0,0.00035472,2]
[392687688,1761810684462,-320.0,0.00035518,2]
[392687689,1761810684471,-1152.0,0.0003554,2]
[392687690,1761810684481,-200.0,0.00035548,120]
[392687691,1761810684490,-175.6,0.00035563,60]
[392687692,1761810684499,-15463.75,0.000356,2]
[392687693,1761810684509,-168.0,0.00035621,2]
[392687694,1761810684517,-175.6,0.00035663,60]
[392687695,1761810684526,-168.0,0.00035671,2]
[392687696,1761810684536,-2062.63176498,0.00035711,2]
[392687697,1761810684545,-175.6,0.00035763,60]
[392687698,1761810684555,-175.6,0.00035863,60]
[392687699,1761810684564,-321.0,0.00035898,2]
[392687700,1761810684573,-175.6,0.00035963,60]
[392687701,1761810684582,-2062.63176498,0.00035967,2]
[392687702,1761810684591,-201.0,0.0003602,41]
[392687703,1761810684600,-168.0,0.00036025,2]
[392687704,1761810684609,-151.0,0.00036033,30]
[392687705,1761810684619,-175.6,0.00036063,60]
[392687706,1761810684628,-203.25214931,0.00036097,5]
[392687707,1761810684638,-175.6,0.00036163,60]
[392687708,1761810684646,-175.6,0.00036263,60]
[392687709,1761810684656,-175.6,0.00036363,60]
[392687710,1761810684666,-2062.63176498,0.00036365,2]
[392687711,1761810684675,-2167.0,0.00036379,2]
[392687712,1761810684684,-984.0,0.00036379,2]
[392687713,1761810684693,-633.0,0.00036379,2]
[392687714,1761810684703,-412.0,0.00036379,2]
[392687715,1761810684712,-150.0,0.00036379,2]
[392687716,1761810684721,-150.0,0.00036379,2]
[392687717,1761810684731,-150.0,0.00036379,2]
[392687718,1761810684740,-175.6,0.00036463,60]
[392687719,1761810684749,-175.6,0.00036563,60]
[392687720,1761810684758,-175.6,0.00036663,60]
[392687721,1761810684767,-200.0,0.00036687,120]
[392687722,1761810684778,-2062.63176498,0.00036695,2]
[392687723,1761810684788,-151.0,0.00036716,30]
[392687724,1761810684797,-175.6,0.00036763,60]
[392687725,1761810684806,-175.6,0.00036863,60]
[392687726,1761810684815,-2062.63176498,0.00036913,2]
[392687727,1761810684826,-175.6,0.00036963,60]
[392687728,1761810684837,-2105.41764887,0.00036972,30]
[392687729,1761810684846,-300.29,0.00036986,30]
[392687730,1761810684857,-9391.3056749,0.00037023,2]
[392687731,1761810684867,-175.6,0.00037063,60]
[392687732,1761810684876,-800.0,0.00037072,7]
[392687733,1761810684886,-811.8462814,0.00037123,30]
[392687734,1761810684895,-175.6,0.00037163,60]
[392687735,1761810684904,-160.0,0.00037187,3]
[392687736,1761810684913,-302.56933958,0.00037187,5]
[392687737,1761810684922,-618.24,0.000372,14]
[392687738,1761810684932,-2062.63176499,0.00037214,2]
[392687739,1761810684941,-634.80169844,0.00037217,120]
[392687740,1761810684951,-536.85017798,0.00037231,7]
[392687741,1761810684960,-175.6,0.00037263,60]
[392687742,1761810684969,-503.0,0.00037332,120]
[392687743,1761810684979,-175.6,0.00037363,60]
[392687744,1761810684988,-1284.59,0.000374,14]
[392687745,1761810685002,-150.0,0.000374,110]
[392687746,1761810685012,-151.0,0.000374,30]
[392687747,1761810685022,-800.0,0.00037409,7]
[392687748,1761810685032,-420225.11883679,0.00037444,7]
[392687749,1761810685506,295.82614086,0.00025205,2]
[392687750,1761810686590,168.98626,0.00025205,2]
[392687751,1761810700253,1530.00000001,0.00034332,120]
[392687755,1761811006093,435.707116,0.00013699,2]
[392687756,1761811006302,435.707116,0.00020187,2]
[392687758,1761811191746,6000.0,0.00034297,60]
[392687759,1761811209065,9000.0,0.00034297,60]
[392687760,1761811221309,9000.0,0.00034297,60]
[392687761,1761811232113,9000.0,0.00034297,60]
[392687762,1761811256942,9000.0,0.00034297,60]
[392687763,1761811273118,9000.0,0.00034297,60]
[392687772,1761811500824,1000.0,0.00024992,30]
[392687788,1761811542234,169.104945,0.00012491,2]
[392687808,1761811589829,-246.95873161,0.00025229,2]
[392687809,1761811589858,-200.0,0.00025252,2]
[392687810,1761811589887,-501.4955958,0.000253,2]
[392687811,1761811589916,-300.0,0.00025892,2]
[392687812,1761811589946,-300.0,0.00025892,2]
[392687813,1761811589977,-1200.0,0.00025892,2]
[392687814,1761811590007,-300.0,0.00025892,2]
[392687815,1761811590037,-1200.0,0.00025893,2]
[392687816,1761811590065,-166.66,0.00025897,2]
[392687817,1761811590095,-300.0,0.00025899,2]
[392687818,1761811590123,-190.83955448,0.000259,2]
[392687819,1761811590678,-320.33830465,0.000259,2]
[392687820,1761811591039,-6124.85856061,0.000259,2]
[392687821,1761811591054,-10000.01,0.000259,2]
[392687822,1761811592651,-3109.2789875,0.000259,2]
[392687823,1761811592678,-3781.452025,0.000259,2]
[392687824,1761811592827,-403.80339554,0.00025938,2]
[392687825,1761811592859,-667.794582,0.00026012,2]
[392687826,1761811592888,-166.66,0.00026171,2]
[392687827,1761811592918,-320.33830465,0.000262,2]
[392687828,1761811592947,-320.33830465,0.000264,2]
[392687829,1761811592976,-500.0,0.00026413,2]
[392687830,1761811593005,-500.0,0.00026413,2]
[392687831,1761811593035,-500.0,0.00026413,2]
[392687832,1761811593066,-500.0,0.00026413,2]
[392687833,1761811593102,-500.0,0.00026413,2]
[392687834,1761811593132,-500.0,0.00026413,2]
[392687835,1761811593314,-242.14082632,0.00026413,2]
[392687836,1761811595693,-257.85917368,0.00026413,2]
[392687837,1761811595722,-500.0,0.00026413,2]
[392687838,1761811595750,-500.0,0.00026413,2]
[392687839,1761811595778,-570.64372505,0.00026413,2]
[392687840,1761811595810,-500.0,0.00026413,2]
[392687841,1761811595839,-500.0,0.00026413,2]
[392687842,1761811595868,-340.08731412,0.00026413,2]
[392687843,1761811595899,-500.0,0.00026413,2]
[392687844,1761811595930,-500.0,0.00026413,2]
[392687845,1761811595959,-491.80606228,0.00026413,2]
[392687846,1761811595991,-179.21744974,0.00026413,2]
[392687847,1761811596153,-320.78255026,0.00026413,2]
[392687848,1761811596185,-500.0,0.00026413,2]
[392687849,1761811596213,-500.0,0.00026413,2]
[392687850,1761811596247,-500.0,0.00026413,2]
[392687851,1761811596282,-500.0,0.00026413,2]
[392687852,1761811596314,-500.0,0.00026413,2]
[392687853,1761811596346,-458.18286102,0.00026413,2]
[392687854,1761811596376,-500.0,0.00026413,2]
[392687855,1761811596408,-250.0,0.00026413,2]
[392687856,1761811596440,-500.0,0.00026413,2]
[392687857,1761811596470,-500.0,0.00026413,2]
[392687858,1761811596501,-245.86287791,0.00026413,2]
[392687859,1761811596667,-91.91852214,0.00026413,2]
[392687860,1761811625118,-150.52850186,0.00026412,2]
[392687921,1761811832403,-200.0,0.00025334,15]
[392687923,1761811832413,-248.22432618,0.00025553,2]
[392687925,1761811832424,-48.11376499,0.000259,2]
[392687927,1761811832435,-112.05538733,0.000259,2]
[392687929,1761811832444,-467.7793613,0.00026072,2]
[392687931,1761811832453,-160.16915232,0.000262,2]
[392687933,1761811832462,-1200.0,0.00026411,2]
[392687935,1761811832472,-403.80339554,0.00026411,2]
[392687937,1761811832482,-300.0,0.00026414,2]
[392687939,1761811832492,-300.0,0.00026414,2]
[392687941,1761811832501,-300.0,0.00026414,2]
[392687943,1761811832510,-300.0,0.00026414,2]
[392687945,1761811832520,-1200.0,0.00026414,2]
[392687947,1761811832529,-300.0,0.00026415,30]
[392687949,1761811832540,-300.0,0.00026415,30]
[392687951,1761811832550,-300.0,0.00026415,30]
[392687953,1761811832559,-300.0,0.00026415,30]
[392687955,1761811832568,-300.0,0.00026415,30]
[392687957,1761811832578,-300.0,0.00026415,30]
[392687959,1761811832587,-300.0,0.00026415,30]
[392687961,1761811832596,-300.0,0.00026415,30]
[392687963,1761811832606,-300.0,0.00026415,30]
[392687965,1761811832615,-300.0,0.00026415,30]
[392687967,1761811832624,-300.0,0.00026415,30]
[392687969,1761811832633,-300.0,0.00026415,30]
[392687971,1761811832643,-300.0,0.00026415,30]
[392687972,1761811832652,-300.0,0.00026415,30]
[392687974,1761811832661,-300.0,0.00026415,30]
[392687977,1761811832671,-600.0,0.00026415,30]
[392687979,1761811832680,-30360.53139582,0.00026415,2]
[392687980,1761811832689,-160.16915232,0.000265,2]
[392687982,1761811832699,-435.707116,0.00026676,2]
[392687984,1761811832707,-160.16915232,0.000267,2]
[392687986,1761811832716,-151.0,0.00027381,2]
[392687988,1761811832727,-151.0,0.00027381,2]
[392687990,1761811832736,-151.0,0.00027381,2]
[392687992,1761811832746,-151.0,0.00027381,2]
[392687994,1761811832756,-151.0,0.00027381,2]
[392687996,1761811832765,-151.0,0.00027381,2]
[392687998,1761811832774,-151.0,0.00027381,2]
[392688000,1761811832783,-151.0,0.00027381,2]
[392688002,1761811832794,-151.0,0.00027381,2]
[392688004,1761811832803,-151.0,0.00027381,2]
[392688006,1761811832813,-151.0,0.00027381,2]
[392688008,1761811832822,-151.0,0.00027381,2]
[392688010,1761811832831,-151.0,0.00027381,2]
[392688012,1761811832841,-151.0,0.00027381,2]
[392688014,1761811832850,-244.93695872,0.00027381,2]
[392688016,1761811832861,-500.0,0.00027395,2]
[392688018,1761811832871,-500.0,0.00027395,2]
[392688020,1761811832880,-260.00970157,0.00027395,2]
[392688022,1761811832889,-500.0,0.00027395,2]
[392688023,1761811832900,-500.0,0.00027395,2]
[392688025,1761811832909,-500.0,0.00027395,2]
[392688026,1761811832918,-500.0,0.00027395,2]
[392688027,1761811832927,-500.0,0.00027395,2]
[392688028,1761811832938,-462.35079607,0.00027395,2]
[392688029,1761811832946,-500.0,0.00027395,2]
[392688030,1761811832955,-500.0,0.00027395,2]
[392688031,1761811832964,-442.83705304,0.00027395,2]
[392688032,1761811832972,-500.0,0.00027395,2]
[392688033,1761811832981,-500.0,0.00027395,2]
[392688034,1761811832990,-500.0,0.00027395,2]
[392688035,1761811832999,-500.0,0.00027395,2]
[392688036,1761811833008,-500.0,0.00027395,2]
[392688037,1761811833017,-500.0,0.00027395,2]
[392688038,1761811833027,-285.86908556,0.00027395,2]
[392688039,1761811833036,-500.0,0.00027395,2]
[392688040,1761811833046,-500.0,0.00027395,2]
[392688041,1761811833055,-500.0,0.00027395,2]
[392688042,1761811833064,-500.0,0.00027395,2]
[392688043,1761811833073,-500.0,0.00027395,2]
[392688044,1761811833082,-500.0,0.00027395,2]
[392688045,1761811833091,-500.0,0.00027395,2]
[392688046,1761811833101,-500.0,0.00027395,2]
[392688047,1761811833110,-500.0,0.00027395,2]
[392688048,1761811833119,-217.57587345,0.00027395,2]
[392688049,1761811833128,-500.0,0.00027395,2]
[392688050,1761811833137,-500.0,0.00027395,2]
[392688051,1761811833147,-500.0,0.00027395,2]
[392688052,1761811833156,-500.0,0.00027395,2]
[392688053,1761811833164,-500.0,0.00027395,2]
[392688054,1761811833174,-500.0,0.00027395,2]
[392688055,1761811833182,-500.0,0.00027395,2]
[392688056,1761811833191,-500.0,0.00027395,2]
[392688057,1761811833200,-500.0,0.00027395,2]
[392688058,1761811833209,-500.0,0.00027395,2]
[392688059,1761811833218,-500.0,0.00027395,2]
[392688060,1761811833228,-500.0,0.00027395,2]
[392688061,1761811833237,-500.0,0.00027395,2]
[392688062,1761811833246,-500.0,0.00027395,2]
[392688063,1761811833255,-500.0,0.00027395,2]
[392688064,1761811833264,-500.0,0.00027395,2]
[392688065,1761811833273,-500.0,0.00027395,2]
[392688066,1761811833283,-500.0,0.00027395,2]
[392688068,1761811833297,-1000.0,0.00027396,2]
[392688069,1761811833306,-1000.0,0.00027396,2]
[392688071,1761811833316,-1000.0,0.00027396,2]
[392688073,1761811833327,-1000.0,0.00027396,2]
[392688075,1761811833336,-1000.0,0.00027396,2]
[392688077,1761811833346,-420.12529342,0.00027396,2]
[392688079,1761811833356,-500.0,0.00027396,2]
[392688081,1761811833368,-500.0,0.00027396,2]
[392688083,1761811833378,-500.0,0.00027396,2]
[392688085,1761811833388,-500.0,0.00027396,2]
[392688087,1761811833397,-500.0,0.00027397,2]
[392688089,1761811833406,-500.0,0.00027397,2]
[392688091,1761811833416,-47.86207231,0.00027397,2]
[392688372,1761811838539,-390.19194335,0.00027396,2]
[392688373,1761811838549,-452.13792769,0.00027397,2]
[392688374,1761811838559,-500.0,0.00027397,2]
[392688375,1761811838569,-500.0,0.00027397,2]
[392688376,1761811838578,-500.0,0.00027397,2]
[392688377,1761811838588,-500.0,0.00027397,2]
[392688378,1761811838598,-500.0,0.00027397,2]
[392688379,1761811838607,-500.0,0.00027397,2]
[392688380,1761811838617,-500.0,0.00027397,2]
[392688381,1761811838626,-500.0,0.00027397,2]
[392688382,1761811838635,-500.0,0.00027397,2]
[392688383,1761811838644,-500.0,0.00027397,2]
[392688384,1761811838654,-500.0,0.00027397,2]
[392688385,1761811838663,-500.0,0.00027397,2]
[392688386,1761811838672,-624.11514548,0.00027397,2]
[392688387,1761811838681,-500.0,0.00027397,2]
[392688388,1761811838691,-500.0,0.00027397,2]
[392688389,1761811838700,-500.0,0.00027397,2]
[392688390,1761811838709,-500.0,0.00027397,2]
[392688391,1761811838719,-500.0,0.00027397,2]
[392688392,1761811838728,-500.0,0.00027397,2]
[392688393,1761811838738,-500.0,0.00027397,2]
[392688394,1761811838748,-500.0,0.00027397,2]
[392688395,1761811838899,-529.25,0.00027397,2]
[392688396,1761811838909,-500.0,0.00027397,2]
[392688397,1761811838919,-526.13,0.00027397,2]
[392688398,1761811838929,-500.0,0.00027397,2]
[392688399,1761811838939,-500.0,0.00027397,2]
[392688400,1761811838949,-500.0,0.00027397,2]